bitfinex/quotes_SOLUSD_20241210
["timestamp","ask_amount","ask_price","bid_price","bid_amount"]
[1733835535202,0.42553191,210.73,210.63,38.27914566]
[1733835535509,0.42553191,210.73,210.64,0.7117464]
[1733835535812,0.42553191,210.73,210.64,38.99089206]
[1733835536394,0.42553191,210.73,210.66,38.27914566]
[1733835536621,0.42553191,210.73,210.67,0.71166437]
[1733835536994,0.42553191,210.73,210.68,38.27914566]
[1733835537201,0.42553191,210.73,210.69,0.71160841]
[1733835537889,0.42553191,210.73,210.69,38.99075407]
[1733835538197,1.1864,210.72,210.64,38.27914566]
[1733835538395,1.1864,210.72,210.65,0.71174851]
[1733835538716,0.29199866,210.71,210.61,38.27914566]
[1733835539013,20.29199866,210.71,210.62,38.99104492]
[1733835539237,0.29199866,210.71,210.64,38.27914566]
[1733835539439,0.29199866,210.71,210.65,0.71177185]
[1733835540031,0.29199866,210.71,210.61,38.27914566]
[1733835540249,0.29199866,210.71,210.62,38.99099942]
[1733835540408,0.29199866,210.71,210.64,38.27914566]
[1733835540608,0.29199866,210.71,210.55,0.71172385]
[1733835540946,1.1865,210.7,210.6,38.27914566]
[1733835541227,0.29199866,210.69,210.61,0.71188589]
[1733835542136,0.29199866,210.69,210.62,0.71196616]
[1733835543039,0.29199866,210.69,210.66,38.27914566]
[1733835543248,0.29199866,210.69,210.54,38.27914566]
[1733835543249,0.29199866,210.69,210.68,38.27914566]
[1733835544123,0.29199866,210.69,210.68,62.30700966]
[1733835544313,0.29199866,210.69,210.68,62.43249966]
[1733835544511,7.6347,210.85,210.71,20.12549]
[1733835544723,7.6347,210.85,210.8,38.27914566]
[1733835544911,7.6347,210.85,210.81,0.71127615]
[1733835544912,8.8203,210.85,210.81,0.71127615]
[1733835545138,8.8203,210.85,210.73,38.27914566]
[1733835545437,7.6347,210.85,210.8,38.27914566]
[1733835545644,5.9658,210.89,210.82,38.27914566]
[1733835545812,4.7804,210.89,210.85,38.27914566]
[1733835546018,7.6347,210.91,210.85,38.27914566]
[1733835546019,7.6347,210.91,210.86,0.71107758]
[1733835546814,7.6347,210.91,210.86,38.99022324]
[1733835547333,1.1851,210.95,210.86,38.99022324]
[1733835547648,10.0,210.93,210.8,38.27914566]
[1733835547946,20.0,210.89,210.74,38.27914566]
[1733835548113,17.6347,210.86,210.75,0.71140806]
[1733835548438,10.0,210.84,210.72,38.27914566]
[1733835548645,17.6347,210.86,210.76,38.27914566]
[1733835548857,7.6347,210.86,210.8,38.27914566]
[1733835549146,1.1853,210.91,210.84,38.27914566]
[1733835549308,1.1853,210.91,210.76,38.27914566]
[1733835549309,7.6347,210.94,210.85,38.99022919]
[1733835549509,7.6347,210.94,210.86,38.27914566]
[1733835549715,7.6347,210.94,210.89,38.27914566]
[1733835549940,7.6347,210.94,210.9,0.71093656]
[1733835550530,7.6347,210.94,210.91,38.27914566]
[1733835550841,0.5051652,210.99,210.93,38.27914566]
[1733835551042,0.5051652,210.99,210.94,38.98992679]
[1733835551359,0.5051652,210.99,210.95,38.27914566]
[1733835551644,0.5051652,210.99,210.96,0.71072373]
[1733835552144,0.5051652,210.99,210.93,0.71084336]
[1733835552145,1.1849,210.98,210.93,0.71084336]
[1733835552441,1.1849,210.98,210.89,0.71093959]
[1733835552627,1.1849,210.98,210.89,38.99008525]
[1733835552832,1.1849,210.98,210.89,0.71093959]
[1733835553139,0.5051652,210.99,210.92,38.27914566]
[1733835553323,0.5051652,210.99,210.79,2.78716605]
[1733835553324,0.5051652,210.99,210.93,38.9899629]
[1733835553519,0.5051652,210.99,210.93,0.71081724]
[1733835553850,0.4201294,210.99,210.93,0.71081724]
[1733835554163,0.4201294,210.99,210.93,38.9899629]
[1733835554458,0.4201294,210.99,210.87,38.27914566]
[1733835554459,1.6050294,210.99,210.94,0.71080536]
[1733835554625,1.6050294,210.99,210.92,38.27914566]
[1733835554960,0.4201294,210.99,210.93,38.98996257]
[1733835555149,1.1849,210.98,210.93,0.71081691]
[1733835555828,1.1849,210.98,210.94,0.71089112]
[1733835556029,0.4201294,210.99,210.93,38.27914566]
[1733835556258,0.4201294,210.99,210.95,38.27914566]
[1733835556479,0.4201294,210.99,210.96,0.71074359]
[1733835557940,0.4201294,210.99,210.96,38.98988925]
[1733835558256,0.4201294,210.99,210.96,0.71074359]
[1733835558928,0.4201294,210.99,210.97,38.27914566]
[1733835559128,0.4201294,210.99,210.98,38.98975847]
[1733835560044,0.4201294,210.99,210.98,0.71061281]
[1733835560240,0.4201294,210.99,210.97,38.27914566]
[1733835560440,10.0,211.1,210.98,38.9897867]
[1733835560646,10.0,211.19,211.09,76.55829132]
[1733835560845,10.0,211.17,211.1,0.71019403]
[1733835561133,12.8231342,211.22,211.12,38.27914566]
[1733835561360,22.8231342,211.22,211.14,38.27914566]
[1733835561559,10.0,211.24,211.15,0.71015357]
[1733835561766,10.0,211.24,211.15,38.98929923]
[1733835561953,1.1834,211.25,211.15,38.98929923]
[1733835562438,17.8695,211.28,211.15,38.98929923]
[1733835562869,10.0,211.25,211.15,38.98929923]
[1733835563093,10.0,211.23,211.15,38.98929923]
[1733835563368,10.0,211.25,211.15,38.98929923]
[1733835564537,1.1834,211.26,211.15,38.98929923]
[1733835564963,11.1835,211.23,211.15,38.98929923]
[1733835565137,10.0,211.22,211.15,0.71015357]
[1733835565337,1.1835,211.23,211.15,38.98929923]
[1733835565539,10.0,211.24,211.15,38.98929923]
[1733835565769,1.1833,211.27,211.15,38.98929923]
[1733835565967,7.8695,211.28,211.15,38.98929923]
[1733835566134,7.8695,211.28,211.15,39.11478923]
[1733835566337,7.8695,211.28,211.15,77.64491489]
[1733835566568,7.8695,211.28,211.15,101.42179889]
[1733835566778,7.8695,211.28,211.26,38.27914566]
[1733835567071,10.0,211.34,211.27,38.98886835]
[1733835567565,10.0,211.34,211.27,0.70972269]
[1733835567566,10.0,211.32,211.27,0.70972269]
[1733835567749,10.0,211.32,211.27,38.98886835]
[1733835567939,10.0,211.32,211.27,0.70972269]
[1733835568149,10.0,211.32,211.26,0.70977447]
[1733835568870,10.0,211.29,211.2,38.27914566]
[1733835569041,20.0,211.26,211.16,38.27914566]
[1733835569241,20.0,211.24,211.17,0.71002388]
[1733835570170,10.0,211.22,211.17,0.71002388]
[1733835570340,10.0,211.22,211.15,0.71011498]
[1733835570538,20.0,211.24,211.15,0.71011498]
[1733835570852,10.0,211.26,211.17,38.27914566]
[1733835571172,21.1831,211.3,211.2,38.27914566]
[1733835571381,10.0,211.29,211.21,0.70983671]
[1733835571548,10.0,211.27,211.21,0.70983671]
[1733835571754,10.0,211.25,211.21,0.70983671]
[1733835572253,10.0,211.23,211.19,0.70999117]
[1733835572461,20.0,211.25,211.19,0.70999117]
[1733835572781,10.0,211.25,211.19,0.70999117]
[1733835573467,10.0,211.29,211.21,38.27914566]
[1733835573655,10.0,211.3,211.23,38.27914566]
[1733835573969,10.0,211.31,211.24,38.98892465]
[1733835574153,10.0,211.3,211.24,38.98892465]
[1733835574346,1.1829,211.34,211.26,38.27914566]
[1733835574549,25.6010177,211.37,211.29,38.27914566]
[1733835574755,10.0,211.35,211.3,38.98874216]
[1733835574973,10.0,211.35,211.3,0.7095965]
[1733835575174,10.0,211.33,211.3,0.7095965]
[1733835575343,10.0,211.35,211.3,0.7095965]
[1733835575543,2.365,211.42,211.3,0.7095965]
[1733835575544,1.1825,211.41,211.3,0.7095965]
[1733835575748,10.50565406,211.46,211.28,9.49434594]
[1733835575973,20.0,211.43,211.3,9.49434594]
[1733835576146,10.0,211.46,211.32,9.49434594]
[1733835576147,20.0,211.46,211.32,9.49434594]
[1733835576571,2.365,211.41,211.32,9.49434594]
[1733835576780,2.365,211.41,211.33,0.7095663]
[1733835577357,1.1824,211.43,211.36,9.49434594]
[1733835578077,1.1824,211.43,211.38,9.49434594]
[1733835578286,1.1824,211.43,211.39,0.70935787]
[1733835578459,5.42292826,211.47,211.4,9.49434594]
[1733835578659,5.42292826,211.47,211.41,0.7092901]
[1733835578878,1.1822,211.47,211.44,9.49434594]
[1733835579383,1.1822,211.47,211.39,9.49434594]
[1733835579677,1.1822,211.47,211.43,9.49434594]
[1733835580154,1.1822,211.47,211.44,0.70920995]
[1733835580782,1.1822,211.47,211.41,9.49434594]
[1733835581290,1.1822,211.47,211.39,9.49434594]
[1733835583583,8.0863,211.5,211.46,0.70913026]
[1733835583886,8.0863,211.5,211.45,9.49434594]
[1733835584089,1.1818,211.54,211.47,9.49434594]
[1733835584455,1.1818,211.54,211.49,9.49434594]
[1733835584760,1.1818,211.54,211.43,38.27914566]
[1733835584761,1.1818,211.54,211.44,0.70901651]
[1733835585090,1.1818,211.54,211.45,9.49434594]
[1733835585290,0.5759177,211.58,211.54,9.49434594]
[1733835585659,0.5759177,211.58,211.55,0.70886545]
[1733835586185,0.5759177,211.58,211.57,9.49434594]
[1733835586362,0.5759177,211.58,211.57,10.20298887]
[1733835586678,0.5759177,211.58,211.57,0.70864293]
[1733835587382,0.5759177,211.58,211.57,10.20298887]
[1733835588086,0.5759177,211.58,211.57,48.48213453]
[1733835588761,0.5759177,211.58,211.57,48.60762453]
[1733835589983,0.5759177,211.58,211.57,48.48213453]
[1733835590181,0.5759177,211.58,211.57,10.20298887]
[1733835590690,0.5759177,211.58,211.57,48.48213453]
[1733835591401,0.5759177,211.58,211.57,48.60762453]
[1733835591704,0.5759177,211.58,211.57,10.20298887]
[1733835592393,0.5759177,211.58,211.57,48.60762453]
[1733835592898,0.5759177,211.58,211.57,10.20298887]
[1733835593261,0.5759177,211.58,211.57,48.48213453]
[1733835593664,0.5759177,211.58,211.57,10.20298887]
[1733835595991,0.5759177,211.58,211.57,48.48213453]
[1733835596193,0.5759177,211.58,211.57,10.20298887]
[1733835597576,0.5759177,211.58,211.55,9.49434594]
[1733835597989,1.1816,211.57,211.5,0.70870506]
[1733835598291,19.4535115,211.56,211.47,9.49434594]
[1733835598486,1.1816,211.57,211.47,9.49434594]
[1733835598689,1.1816,211.57,211.38,0.70895429]
[1733835598690,0.5759177,211.58,211.53,9.49434594]
[1733835598886,0.5759177,211.58,211.55,9.49434594]
[1733835599068,0.5759177,211.58,211.56,10.20309494]
[1733835599271,0.5759177,211.58,211.56,0.708749]
[1733835599669,0.5759177,211.58,211.56,9.49434594]
[1733835599879,0.5759177,211.58,211.57,0.7087921]
[1733835600608,0.5759177,211.58,211.57,38.98793776]
[1733835600899,0.5759177,211.58,211.57,0.7087921]
[1733835601589,0.5759177,211.58,211.57,24.31398421]
[1733835601893,0.5759177,211.58,211.57,24.43947421]
[1733835602103,0.5759177,211.58,211.57,24.56496421]
[1733835602280,0.5759177,211.58,211.57,48.46733821]
[1733835602797,0.5759177,211.58,211.57,360.46733821]
[1733835602995,0.5759177,211.58,211.57,359.75854611]
[1733835603197,12.3168,211.76,211.72,9.49434594]
[1733835603503,12.3168,211.76,211.58,11.8158]
[1733835603504,13.4974,211.76,211.62,9.49434594]
[1733835603700,13.4974,211.76,211.59,9.49434594]
[1733835603898,0.50565406,211.75,211.59,9.49434594]
[1733835604097,15.8585,211.76,211.53,9.49434594]
[1733835604098,10.50565406,211.73,211.53,9.49434594]
[1733835604398,10.50565406,211.73,211.42,31.79819211]
[1733835604399,23.776884,211.71,211.58,9.49434594]
[1733835604589,20.0,211.68,211.6,9.49434594]
[1733835605301,20.0,211.65,211.59,0.70865322]
[1733835605485,20.0,211.61,211.51,9.49434594]
[1733835605684,1.1814,211.6,211.51,9.49434594]
[1733835606002,20.0,211.56,211.47,0.70895922]
[1733835606204,20.0,211.56,211.5,9.49434594]
[1733835606386,20.0,211.56,211.49,9.49434594]
[1733835606702,20.0,211.58,211.5,0.7090274]
[1733835607003,20.0,211.58,211.5,10.20337334]
[1733835607417,1.1816,211.57,211.5,0.7090274]
[1733835607578,1.1816,211.57,211.5,0.70904847]
[1733835607924,1.1816,211.57,211.44,9.49434594]
[1733835607925,20.0,211.53,211.44,9.49434594]
[1733835608276,20.0,211.49,211.43,9.49434594]
[1733835608509,27.512,211.49,211.4,0.70915172]
[1733835608715,27.512,211.49,211.41,9.49434594]
[1733835609005,27.512,211.49,211.45,9.49434594]
[1733835609188,7.512,211.55,211.48,9.49434594]
[1733835609392,20.0,211.52,211.48,9.49434594]
[1733835609578,20.0,211.52,211.44,9.49434594]
[1733835609778,20.0,211.52,211.42,9.49434594]
[1733835609779,23.776884,211.51,211.42,9.49434594]
[1733835610079,23.776884,211.51,211.41,0.70918904]
[1733835610295,23.776884,211.51,211.43,9.49434594]
[1733835610498,20.0,211.52,211.45,9.49434594]
[1733835610709,7.512,211.55,211.47,9.49434594]
[1733835610909,7.512,211.55,211.46,0.70906264]
[1733835610910,20.0,211.52,211.46,0.70906264]
[1733835611200,20.0,211.52,211.29,12.77846937]
[1733835611201,20.0,211.52,211.39,9.49434594]
[1733835611502,4.8048,211.51,211.37,9.49434594]
[1733835611714,4.8048,211.51,211.34,9.49434594]
[1733835611715,20.0,211.48,211.34,9.49434594]
[1733835612013,5.9867,211.51,211.4,9.49434594]
[1733835612311,20.0,211.48,211.43,9.49434594]
[1733835612485,20.0,211.48,211.45,9.49434594]
[1733835612687,5.9867,211.51,211.47,9.49434594]
[1733835612688,4.8048,211.51,211.47,9.49434594]
[1733835612915,8.6937,211.55,211.49,9.49434594]
[1733835613206,7.512,211.55,211.49,9.49434594]
[1733835613421,5.1865,211.59,211.52,9.49434594]
[1733835613712,7.6733,211.61,211.56,9.49434594]
[1733835614012,8.8547,211.61,211.49,9.49434594]
[1733835614239,8.8547,211.61,211.47,9.49434594]
[1733835614642,10.50565406,211.59,211.43,9.49434594]
[1733835615021,18.8547,211.61,211.46,9.49434594]
[1733835615222,13.5803,211.61,211.48,9.49434594]
[1733835615423,20.0,211.58,211.48,9.49434594]
[1733835615613,1.1816,211.57,211.44,10.20344125]
[1733835615826,1.1816,211.57,211.47,9.49434594]
[1733835616116,1.1816,211.57,211.51,9.49434594]
[1733835616441,1.1816,211.57,211.48,0.7091177]
[1733835616442,1.1816,211.57,211.49,9.49434594]
[1733835617338,1.1816,211.57,211.47,9.49434594]
[1733835617536,1.1816,211.57,211.49,9.49434594]
[1733835617537,2.82959675,211.56,211.49,9.49434594]
[1733835617716,1.1817,211.55,211.48,0.70908194]
[1733835617947,1.1817,211.55,211.45,9.49434594]
[1733835618128,1.1817,211.55,211.47,9.49434594]
[1733835618330,1.1815,211.59,211.54,9.49434594]
[1733835618646,1.1815,211.59,211.51,10.20323048]
[1733835618810,1.1815,211.59,211.53,9.49434594]
[1733835619209,7.6733,211.61,211.53,9.49434594]
[1733835619411,7.6733,211.61,211.57,9.49434594]
[1733835619614,7.6733,211.61,211.43,10.0]
[1733835619615,0.1958051,211.66,211.61,9.49434594]
[1733835619835,0.1958051,211.66,211.62,0.70865381]
[1733835620037,0.1958051,211.66,211.63,9.49434594]
[1733835620213,0.1958051,211.66,211.62,0.70855769]
[1733835620407,0.1958051,211.66,211.61,10.20296664]
[1733835621027,0.1958051,211.66,211.63,9.49434594]
[1733835621226,0.1958051,211.66,211.64,0.7085917]
[1733835621413,0.1958051,211.66,211.63,10.2029065]
[1733835621813,0.1958051,211.66,211.65,9.49434594]
[1733835623118,0.1958051,211.66,211.65,48.58892429]
[1733835623440,0.1958051,211.66,211.65,48.71441429]
[1733835624321,0.1958051,211.66,211.65,58.96539429]
[1733835624516,7.9659,211.85,211.78,9.49434594]
[1733835624956,1.1801,211.84,211.78,9.49434594]
[1733835625244,5.883905,211.88,211.84,9.49434594]
[1733835625946,0.600505,211.88,211.84,9.49434594]
[1733835626643,0.600505,211.88,211.86,9.49434594]
[1733835627040,0.600505,211.88,211.87,0.70774844]
[1733835629032,0.600505,211.88,211.84,9.49434594]
[1733835629255,1.1799,211.87,211.81,9.49434594]
[1733835629450,1.1799,211.87,211.79,9.49434594]
[1733835629639,1.1799,211.87,211.77,9.49434594]
[1733835629833,1.1799,211.87,211.79,9.49434594]
[1733835630156,1.1799,211.87,211.81,9.49434594]
[1733835630350,0.600505,211.88,211.84,9.49434594]
[1733835630564,0.600505,211.88,211.86,9.49434594]
[1733835630863,0.600505,211.88,211.87,0.70776796]
[1733835631443,0.600505,211.88,211.84,9.49434594]
[1733835631851,0.600505,211.88,211.86,9.49434594]
[1733835632051,0.600505,211.88,211.87,0.70780295]
[1733835633724,0.600505,211.88,211.84,9.49434594]
[1733835633931,0.600505,211.88,211.82,9.49434594]
[1733835634244,0.600505,211.88,211.87,9.49434594]
[1733835634641,0.600505,211.88,211.85,9.49434594]
[1733835634844,0.600505,211.88,211.82,9.49434594]
[1733835635165,0.600505,211.88,211.83,0.70795059]
[1733835635342,0.600505,211.88,211.86,9.49434594]
[1733835635536,0.600505,211.88,211.87,0.70780422]
[1733835638841,0.600505,211.88,211.87,39.21934796]
[1733835639968,0.600505,211.88,211.87,351.21934796]
[1733835640150,0.600505,211.88,211.87,350.51154374]
[1733835640498,1.179,212.05,212.0,9.49434594]
[1733835640672,1.179,212.05,211.97,9.49434594]
[1733835641364,1.179,212.05,211.99,9.49434594]
[1733835641541,1.179,212.05,211.99,10.20171087]
[1733835642052,1.179,212.05,211.99,9.49434594]
[1733835643041,1.179,212.05,211.96,9.49434594]
[1733835643242,1.179,212.05,211.99,9.49434594]
[1733835643648,1.179,212.05,211.88,10.0]
[1733835643649,1.179,212.05,212.01,9.49434594]
[1733835643972,5.0224,212.09,212.01,9.49434594]
[1733835644173,5.0224,212.09,212.03,9.49434594]
[1733835644375,5.0224,212.09,212.04,0.70719086]
[1733835644562,1.779205,212.1,212.06,9.49434594]
[1733835644763,1.779205,212.1,212.04,10.2015368]
[1733835645075,1.779205,212.1,212.02,9.49434594]
[1733835645371,0.600505,212.1,212.08,9.49434594]
[1733835646055,0.600505,212.1,212.06,9.49434594]
[1733835646259,0.600505,212.1,212.08,9.49434594]
[1733835646445,0.600505,212.1,212.09,0.70708995]
[1733835646872,0.600505,212.1,212.09,39.09314369]
[1733835647956,0.600505,212.1,212.09,39.21863369]
[1733835648163,0.600505,212.1,212.09,39.09314369]
[1733835648371,0.600505,212.1,212.09,0.70708995]
[1733835648691,0.600505,212.1,212.08,10.20139035]
[1733835649251,0.600505,212.1,212.08,48.58744409]
[1733835649451,0.600505,212.1,212.09,38.38605374]
[1733835649871,0.600505,212.1,212.08,10.20139035]
[1733835650070,0.600505,212.1,212.08,48.58744409]
[1733835650779,0.600505,212.1,212.09,38.38605374]
[1733835651465,1.1775,212.31,212.21,9.49434594]
[1733835651655,3.5325,212.31,212.17,9.49434594]
[1733835651862,3.5325,212.31,212.19,9.49434594]
[1733835652060,3.5325,212.31,212.18,0.70676693]
[1733835652061,1.1775,212.31,212.26,9.49434594]
[1733835652290,1.1775,212.31,212.28,9.49434594]
[1733835653164,0.600505,212.32,212.28,9.49434594]
[1733835653362,1.777905,212.32,212.2,9.49434594]
[1733835653582,1.777905,212.32,212.15,38.38605374]
[1733835653583,0.600505,212.32,212.28,9.49434594]
[1733835653780,0.600505,212.32,212.3,9.49434594]
[1733835653986,0.600505,212.32,212.31,0.70632337]
[1733835654591,0.600505,212.32,212.31,39.09237711]
[1733835654886,0.600505,212.32,212.31,0.70632337]
[1733835656276,0.600505,212.32,212.31,39.21786711]
[1733835656467,0.600505,212.32,212.31,39.09237711]
[1733835656964,0.600505,212.32,212.31,39.21786711]
[1733835657161,0.600505,212.32,212.31,39.34335711]
[1733835657875,0.600505,212.32,212.31,49.46884711]
[1733835658268,0.600505,212.32,212.31,63.64884711]
[1733835658483,0.600505,212.32,212.31,39.46884711]
[1733835659484,0.600505,212.32,212.31,63.64884711]
[1733835659994,1.1764,212.5,212.47,9.49434594]
[1733835660363,1.1764,212.5,212.48,0.70575709]
[1733835660963,1.1764,212.5,212.49,9.49434594]
[1733835661189,8.1594,212.51,212.49,9.49434594]
[1733835661392,4.9884,212.53,212.49,9.49434594]
[1733835661708,4.9884,212.53,212.5,0.70569925]
[1733835661866,0.0786481,212.53,212.5,0.70569925]
[1733835662069,0.0786481,212.53,212.52,86.51743342]
[1733835662370,0.0786481,212.53,212.52,47.88039968]
[1733835662592,0.0786481,212.53,212.52,48.83676061]
[1733835662889,0.0786481,212.53,212.52,87.34830435]
[1733835663076,0.0786481,212.53,212.52,86.64292342]
[1733835664164,0.0786481,212.53,212.52,96.64292342]
[1733835664365,0.6160981,212.58,212.56,0.25098]
[1733835664590,0.6160981,212.58,212.57,48.58559263]
[1733835664762,0.6160981,212.58,212.57,10.19953889]
[1733835665068,0.6160981,212.58,212.57,48.58559263]
[1733835665471,0.50565406,212.87,212.75,9.49434594]
[1733835665472,13.1478,212.83,212.75,9.49434594]
[1733835665777,13.1478,212.83,212.78,9.49434594]
[1733835665981,10.95999069,212.99,212.8,47.88039968]
[1733835666163,8.1594,212.99,212.8,48.00588968]
[1733835666485,8.1594,212.99,212.8,48.25686968]
[1733835666673,8.1594,212.99,212.8,58.25686968]
[1733835666887,8.1594,212.99,212.8,47.88039968]
[1733835667089,10.0,212.97,212.8,10.19880559]
[1733835667395,1.1746,212.84,212.77,9.49434594]
[1733835667583,10.0,212.87,212.75,9.49434594]
[1733835667983,8.7754981,212.81,212.71,9.49434594]
[1733835668187,8.7754981,212.81,212.66,10.19933691]
[1733835668188,20.0,212.78,212.66,10.19933691]
[1733835668379,20.0,212.78,212.66,9.49434594]
[1733835668689,20.0,212.78,212.7,9.49434594]
[1733835668690,1.1749,212.77,212.7,9.49434594]
[1733835668881,1.1749,212.77,212.68,9.49434594]
[1733835669215,20.0,212.76,212.64,10.19941258]
[1733835669408,20.0,212.71,212.62,9.49434594]
[1733835669709,20.0,212.71,212.64,9.49434594]
[1733835670085,20.0,212.7,212.59,9.49434594]
[1733835670283,20.0,212.7,212.5,1.0]
[1733835670284,20.0,212.7,212.63,9.49434594]
[1733835670601,20.0,212.7,212.62,9.49434594]
[1733835670805,20.0,212.7,212.6,9.49434594]
[1733835670806,20.0,212.69,212.6,9.49434594]
[1733835671006,20.0,212.69,212.58,9.49434594]
[1733835671190,20.0,212.67,212.58,9.49434594]
[1733835671378,21.1754,212.69,212.58,10.3545263]
[1733835671585,30.0,212.67,212.59,0.8601399]
[1733835671791,20.0,212.66,212.59,3.99e-05]
[1733835671993,20.0,212.61,212.5,10.49434594]
[1733835672195,20.0,212.59,212.5,1.0]
[1733835672410,20.0,212.59,212.51,0.8604637]
[1733835672611,1.176,212.58,212.51,0.8604637]
[1733835672992,20.0,212.46,212.4,9.49434594]
[1733835673190,20.0,212.46,212.42,9.49434594]
[1733835673393,23.776884,212.53,212.28,17.9826]
[1733835673394,23.776884,212.53,212.44,9.49434594]
[1733835673578,23.776884,212.53,212.48,9.49434594]
[1733835673579,20.0,212.5,212.48,9.49434594]
[1733835674096,20.0,212.54,212.5,9.49434594]
[1733835674298,20.0,212.54,212.52,9.49434594]
[1733835674505,20.0,212.54,212.41,38.38605374]
[1733835674506,1.1758,212.62,212.55,9.49434594]
[1733835674916,4.9884,212.65,212.59,9.49434594]
[1733835675509,4.9884,212.65,212.59,8.99434594]
[1733835675704,6.164,212.65,212.56,0.70549368]
[1733835676018,8.5152,212.65,212.54,8.99434594]
[1733835676384,8.5152,212.65,212.52,8.99434594]
[1733835676581,1.1757,212.63,212.52,8.99434594]
[1733835676894,23.776884,212.58,212.52,8.99434594]
[1733835677621,20.0,212.55,212.5,9.69982662]
[1733835677796,23.776884,212.54,212.5,0.70548068]
[1733835677983,20.0,212.55,212.51,9.70007387]
[1733835678186,23.776884,212.57,212.51,9.70007387]
[1733835678389,23.776884,212.57,212.51,0.70572793]
[1733835678691,23.776884,212.55,212.51,9.70007387]
[1733835678893,0.86271681,212.54,212.51,9.70007387]
[1733835679080,0.86271681,212.54,212.53,8.99434594]
[1733835679283,0.86271681,212.54,212.53,9.69990067]
[1733835680084,0.86271681,212.54,212.51,8.99434594]
[1733835680320,0.86271681,212.54,212.53,8.99434594]
[1733835680525,0.86271681,212.54,212.53,47.38039968]
[1733835681111,1.1755,212.68,212.59,8.99434594]
[1733835681292,0.86271681,212.67,212.6,0.70533739]
[1733835681500,0.86271681,212.67,212.59,8.99434594]
[1733835682007,0.86271681,212.67,212.55,8.99434594]
[1733835682209,0.86271681,212.67,212.56,0.7053932]
[1733835682210,20.0,212.66,212.56,0.7053932]
[1733835682399,20.0,212.61,212.56,0.7053932]
[1733835682792,20.0,212.61,212.58,8.99434594]
[1733835683011,23.776884,212.62,212.58,8.99434594]
[1733835683191,0.86271681,212.65,212.62,8.99434594]
[1733835683387,0.86271681,212.65,212.63,0.70531431]
[1733835683621,0.86271681,212.65,212.64,8.99434594]
[1733835685303,0.86271681,212.65,212.64,47.38039968]
[1733835685508,0.86271681,212.65,212.64,8.99434594]
[1733835685916,0.86271681,212.65,212.64,47.38039968]
[1733835686102,0.86271681,212.65,212.64,48.0854596]
[1733835686499,1.175,212.76,212.64,48.0854596]
[1733835686700,0.86271681,212.75,212.69,8.99434594]
[1733835686996,0.86271681,212.75,212.72,8.99434594]
[1733835687201,0.86271681,212.75,212.73,0.70494438]
[1733835688632,9.5332,212.8,212.77,8.99434594]
[1733835689138,0.6160981,212.81,212.75,8.99434594]
[1733835689341,1.47881491,212.81,212.76,0.70484124]
[1733835689541,1.47881491,212.81,212.78,8.99434594]
[1733835689746,0.6160981,212.81,212.8,8.99434594]
[1733835690039,0.6160981,212.81,212.8,9.11983594]
[1733835690206,0.6160981,212.81,212.8,47.63137968]
[1733835690607,1.1738,212.98,212.93,8.99434594]
[1733835690927,0.86271681,212.97,212.95,8.99434594]
[1733835691233,0.86271681,212.97,212.96,0.70418896]
[1733835691645,0.6160981,213.03,212.99,8.99434594]
[1733835691945,0.6160981,213.03,212.99,47.38039968]
[1733835692708,0.6160981,213.03,212.99,47.50588968]
[1733835692908,0.6160981,213.03,212.99,8.99434594]
[1733835693138,0.6160981,213.03,212.99,9.69827752]
[1733835693342,0.6160981,213.03,212.99,48.08433126]
[1733835693516,0.6160981,213.03,212.99,9.69827752]
[1733835693837,0.6160981,213.03,212.99,48.08433126]
[1733835694043,0.6160981,213.03,212.99,9.69827752]
[1733835694245,0.6160981,213.03,212.99,8.99434594]
[1733835694414,3.1717,213.0,212.97,8.99434594]
[1733835694620,3.1717,213.0,212.89,0.70414422]
[1733835694621,20.0,212.96,212.95,8.99434594]
[1733835695439,23.776884,212.99,212.9,8.99434594]
[1733835695635,24.63960081,212.99,212.95,8.99434594]
[1733835695843,23.776884,212.95,212.9,8.99434594]
[1733835696009,23.776884,212.98,212.95,8.99434594]
[1733835696210,3.1717,213.0,212.97,8.99434594]
[1733835696648,1.998,213.0,212.99,8.99434594]
[1733835699966,1.998,213.0,212.95,1.0]
[1733835700278,0.1737,212.99,212.9,8.99434594]
[1733835700437,20.0,212.96,212.94,8.99434594]
[1733835700760,20.0,212.92,212.84,8.99434594]
[1733835700965,23.776884,212.91,212.86,8.99434594]